bitfinex/quotes_BTCUSD_20250127
["timestamp","ask_amount","ask_price","bid_price","bid_amount"]
[1737968865137,3.03e-05,99400.0,99399.0,1.89618232]
[1737968865980,1e-08,99412.0,99411.0,0.323888]
[1737968866211,0.0265429,99466.0,99465.0,0.300806]
[1737968866455,9e-07,99466.0,99465.0,0.41099329]
[1737968866663,0.00049476,99466.0,99465.0,0.66727043]
[1737968867258,0.00049476,99466.0,99465.0,1.02007678]
[1737968867472,0.01085046,99488.0,99474.0,0.150792]
[1737968867676,0.01099851,99488.0,99465.0,0.36646443]
[1737968867874,0.0779,99478.0,99465.0,0.28059005]
[1737968868108,0.150805,99466.0,99465.0,0.0238367]
[1737968868434,0.00603101,99466.0,99465.0,0.0238367]
[1737968868640,0.047,99471.0,99465.0,0.02284]
[1737968868641,0.248063,99471.0,99465.0,0.02284]
[1737968868840,0.201065,99470.0,99465.0,0.02284]
[1737968869000,0.150805,99466.0,99465.0,0.02284]
[1737968869178,0.150805,99466.0,99465.0,0.01]
[1737968869179,0.32605229,99466.0,99465.0,0.01]
[1737968869357,0.32605229,99466.0,99452.0,0.005]
[1737968869358,0.150825,99453.0,99452.0,0.005]
[1737968869561,0.198725,99453.0,99452.0,0.005]
[1737968870162,0.20489251,99453.0,99452.0,0.005]
[1737968870374,0.70764251,99453.0,99452.0,0.005]
[1737968870520,0.70764251,99453.0,99452.0,0.006]
[1737968870731,0.70779048,99453.0,99452.0,0.006]
[1737968870929,0.78749048,99453.0,99452.0,0.005]
[1737968871490,0.78849048,99453.0,99452.0,0.005]
[1737968871710,0.88583777,99453.0,99452.0,0.005]
[1737968872327,0.78849048,99453.0,99452.0,0.005]
[1737968872533,0.78840021,99453.0,99452.0,0.005]
[1737968873220,0.79746882,99453.0,99452.0,0.005]
[1737968873637,0.79846882,99453.0,99452.0,0.005]
[1737968877684,0.78840021,99453.0,99452.0,0.005]
[1737968880031,0.70870021,99453.0,99452.0,0.005]
[1737968881333,0.70770021,99453.0,99452.0,0.005]
[1737968881757,0.01,99443.0,99401.0,0.201203]
[1737968881983,0.150861,99429.0,99405.0,0.01031334]
[1737968882190,0.150887,99412.0,99405.0,0.01031334]
[1737968882396,0.50275,99412.0,99406.0,0.09734729]
[1737968882599,0.50275,99412.0,99396.0,0.0009857]
[1737968882600,0.402368,99411.0,99396.0,0.0009857]
[1737968882815,0.15080391,99400.0,99396.0,0.0009857]
[1737968883032,0.65355391,99400.0,99396.0,0.0009857]
[1737968883235,0.65355391,99400.0,99377.0,0.01032689]
[1737968883236,0.65982124,99400.0,99377.0,0.01032689]
[1737968883483,0.65982124,99400.0,99399.0,0.0007908]
[1737968883668,0.75716853,99400.0,99399.0,0.0007908]
[1737968884102,0.75711863,99400.0,99399.0,0.0007908]
[1737968884527,0.75811863,99400.0,99399.0,0.0007908]
[1737968884743,0.150946,99373.0,99372.0,0.000996]
[1737968884956,0.653696,99373.0,99372.0,0.00114403]
[1737968885164,0.65987516,99373.0,99372.0,0.00014803]
[1737968886198,0.50892916,99373.0,99372.0,0.00014803]
[1737968886405,0.65987516,99373.0,99372.0,0.00014803]
[1737968887238,0.65987516,99373.0,99372.0,0.00044539]
[1737968887408,0.65987516,99373.0,99372.0,0.00244539]
[1737968888311,0.50892916,99373.0,99372.0,0.00044539]
[1737968888777,0.50892916,99373.0,99372.0,0.15139239]
[1737968889401,0.50892916,99373.0,99372.0,0.00044539]
[1737968889609,0.50992916,99373.0,99372.0,0.00044539]
[1737968889799,0.50375,99373.0,99372.0,0.15139239]
[1737968890125,0.50875278,99373.0,99372.0,0.00044539]
[1737968890340,0.50875278,99373.0,99372.0,0.15339239]
[1737968890969,0.50975278,99373.0,99372.0,0.15739239]
[1737968891147,0.50875278,99373.0,99372.0,0.15139239]
[1737968891347,0.50875278,99373.0,99372.0,0.15239239]
[1737968891552,0.50875278,99373.0,99372.0,0.26513968]
[1737968892369,0.50875278,99373.0,99372.0,0.26213968]
[1737968892831,0.50875278,99373.0,99372.0,0.26113968]
[1737968893174,0.50875278,99373.0,99372.0,0.26213968]
[1737968893622,0.50875278,99373.0,99372.0,0.26113968]
[1737968893823,0.50875278,99373.0,99372.0,0.26613968]
[1737968893979,0.50875278,99373.0,99372.0,0.26313968]
[1737968894391,0.50875278,99373.0,99372.0,0.26813968]
[1737968894597,0.50875278,99373.0,99372.0,0.26613968]
[1737968895047,0.50875278,99373.0,99372.0,0.26113968]
[1737968895452,0.50875278,99373.0,99372.0,0.26613968]
[1737968896080,0.50875278,99373.0,99372.0,0.52341682]
[1737968896502,0.50875278,99373.0,99372.0,0.52241682]
[1737968896709,0.50875278,99373.0,99372.0,0.52341682]
[1737968897136,0.50875278,99373.0,99372.0,0.26713968]
[1737968897350,0.50875278,99373.0,99372.0,0.26613968]
[1737968897553,0.50875278,99373.0,99372.0,0.26213968]
[1737968897963,0.50875278,99373.0,99372.0,0.26513968]
[1737968898140,0.50875278,99373.0,99372.0,0.26213968]
[1737968898579,0.50875278,99373.0,99372.0,0.26713968]
[1737968898783,0.50875278,99373.0,99372.0,0.00144539]
[1737968898988,0.65969878,99373.0,99372.0,0.00144539]
[1737968899191,0.65969878,99373.0,99372.0,0.00444539]
[1737968899393,0.65969878,99373.0,99372.0,0.00144539]
[1737968899728,0.65969878,99373.0,99372.0,0.00044539]
[1737968899934,0.65969878,99373.0,99372.0,0.00144539]
[1737968900155,0.50875278,99373.0,99372.0,0.00144539]
[1737968900490,0.50875278,99373.0,99372.0,0.15139239]
[1737968900632,0.50975278,99373.0,99372.0,0.15139239]
[1737968900840,0.50375,99373.0,99372.0,0.15639239]
[1737968901091,0.50973554,99373.0,99372.0,0.15139239]
[1737968901291,0.50873554,99373.0,99372.0,0.15139239]
[1737968901494,0.50873554,99373.0,99372.0,0.15439239]
[1737968901693,0.50873554,99373.0,99372.0,0.15239239]
[1737968901902,0.50873554,99373.0,99372.0,0.24973968]
[1737968902103,0.50873554,99373.0,99372.0,0.15639239]
[1737968902308,0.50873554,99373.0,99372.0,0.15239239]
[1737968902668,0.50873554,99373.0,99372.0,0.15539239]
[1737968902875,0.50873554,99373.0,99372.0,0.15439239]
[1737968903276,0.50873554,99373.0,99372.0,0.25273968]
[1737968903716,0.50873554,99373.0,99372.0,0.25173968]
[1737968904119,0.50873554,99373.0,99372.0,0.25273968]
[1737968904461,0.50873554,99373.0,99372.0,0.24973968]
[1737968904594,0.50873554,99373.0,99372.0,0.24873968]
[1737968904816,0.50873554,99373.0,99372.0,0.25273968]
[1737968905017,0.50873554,99373.0,99372.0,0.24973968]
[1737968905415,0.50873554,99373.0,99372.0,0.25273968]
[1737968905688,0.50873554,99373.0,99372.0,0.24973968]
[1737968906302,0.50873554,99373.0,99372.0,0.24873968]
[1737968906506,0.50873554,99373.0,99372.0,0.24973968]
[1737968906708,0.50873554,99373.0,99372.0,1.01769503]
[1737968906859,0.50873554,99373.0,99372.0,1.01669503]
[1737968907068,0.50873554,99373.0,99372.0,1.00306703]
[1737968907397,0.50873554,99373.0,99372.0,1.00406703]
[1737968907896,0.50873554,99373.0,99372.0,1.00606703]
[1737968908098,0.50873554,99373.0,99372.0,1.00306703]
[1737968908308,0.50873554,99373.0,99372.0,1.02800996]
[1737968908451,0.50873554,99373.0,99372.0,1.04040996]
[1737968908667,0.50873554,99373.0,99372.0,0.63533396]
[1737968908862,0.50873554,99373.0,99372.0,0.65833396]
[1737968909063,0.3586361,99373.0,99372.0,0.65833396]
[1737968909255,0.33275841,99373.0,99372.0,0.54867396]
[1737968909461,0.33275841,99373.0,99372.0,2.34286993]
[1737968909663,0.32736434,99373.0,99372.0,2.42015544]
[1737968909931,0.3213788,99373.0,99372.0,2.39176993]
[1737968910100,0.2811268,99373.0,99372.0,2.39476993]
[1737968910298,0.2207488,99373.0,99372.0,2.39476993]
[1737968910716,0.2207488,99373.0,99372.0,2.38676993]
[1737968910892,0.2207488,99373.0,99372.0,2.39276993]
[1737968911124,0.1201188,99373.0,99372.0,2.40076993]
[1737968911326,0.1201188,99373.0,99372.0,2.39276993]
[1737968911525,0.1201188,99373.0,99372.0,2.40176993]
[1737968911780,0.0410288,99373.0,99372.0,2.40176993]
[1737968912103,0.0007768,99373.0,99372.0,2.40176993]
[1737968912323,0.0802,99441.0,99431.0,0.150858]
[1737968912548,0.00604216,99440.0,99434.0,0.15]
[1737968912743,0.50888216,99440.0,99439.0,0.300846]
[1737968912947,0.50888216,99440.0,99439.0,0.39819329]
[1737968913568,0.50888216,99440.0,99439.0,1.13017829]
[1737968913865,0.50937572,99440.0,99439.0,0.96583029]
[1737968914058,0.50937572,99440.0,99439.0,0.96683029]
[1737968914260,0.50937572,99440.0,99439.0,0.99980626]
[1737968915036,0.50937572,99440.0,99439.0,0.51817626]
[1737968915233,0.50937572,99440.0,99439.0,0.26116926]
[1737968915642,0.50937572,99440.0,99439.0,0.16082197]
[1737968916003,0.50937572,99440.0,99439.0,0.00997597]
[1737968916208,0.50937572,99440.0,99434.0,0.201137]
[1737968916209,0.50333356,99440.0,99436.0,0.150849]
[1737968916450,0.50877316,99440.0,99426.0,0.201152]
[1737968916788,0.50877316,99440.0,99400.0,0.22234594]
[1737968916789,0.50877316,99440.0,99416.0,0.15088]
[1737968916996,0.351977,99438.0,99415.0,0.0124]
[1737968917131,0.09734729,99437.0,99415.0,0.163281]
[1737968917338,0.150865,99427.0,99415.0,0.0124]
[1737968917561,0.50284,99427.0,99426.0,0.007]
[1737968917958,0.50284,99427.0,99424.0,0.150868]
[1737968918190,0.50284,99427.0,99425.0,0.150866]
[1737968918540,0.50284,99427.0,99420.0,0.003]
[1737968918709,0.50284,99427.0,99426.0,0.150865]
[1737968918909,0.50284,99427.0,99426.0,0.151865]
[1737968920251,0.50284,99427.0,99426.0,0.150865]
[1737968920456,0.50284,99427.0,99426.0,0.151865]
[1737968920867,0.50284,99427.0,99426.0,0.150865]
[1737968921274,0.50284,99427.0,99426.0,0.154865]
[1737968922010,0.50284,99427.0,99426.0,0.25221229]
[1737968922209,0.50284,99427.0,99426.0,0.40221229]
[1737968922858,0.50284,99427.0,99426.0,0.41361229]
[1737968923681,0.5029816,99427.0,99426.0,0.41361229]
[1737968924083,0.50824125,99427.0,99426.0,0.41161229]
[1737968924456,0.50824125,99427.0,99426.0,0.41361229]
[1737968924608,0.50824125,99427.0,99426.0,0.41161229]
[1737968924820,0.50824125,99427.0,99426.0,0.41561229]
[1737968925195,0.50824125,99427.0,99426.0,0.26561229]
[1737968925399,0.50824125,99427.0,99426.0,0.41561229]
[1737968925820,0.50824125,99427.0,99426.0,0.41461229]
[1737968926013,0.50824125,99427.0,99426.0,0.41561229]
[1737968926450,0.50824125,99427.0,99426.0,0.41461229]
[1737968926660,0.50824125,99427.0,99426.0,0.41061229]
[1737968926866,0.50824125,99427.0,99426.0,0.80834864]
[1737968927279,0.50824125,99427.0,99426.0,0.80734864]
[1737968927499,0.36216625,99427.0,99426.0,0.83034864]
[1737968927716,0.36216625,99427.0,99426.0,0.66882364]
[1737968928130,0.32193625,99427.0,99426.0,0.67282364]
[1737968928338,0.28170625,99427.0,99426.0,0.67282364]
[1737968928538,0.26159125,99427.0,99426.0,0.64982364]
[1737968928745,0.26159125,99427.0,99426.0,0.63742364]
[1737968928940,0.2563316,99427.0,99426.0,0.52522064]
[1737968929143,0.26165917,99427.0,99426.0,0.52522064]
[1737968929351,0.26165917,99427.0,99426.0,0.52622064]
[1737968929760,0.26165917,99427.0,99426.0,0.52122064]
[1737968930089,0.26165917,99427.0,99426.0,0.53322064]
[1737968930310,0.26165917,99427.0,99426.0,0.52422064]
[1737968930519,0.26165917,99427.0,99426.0,0.42370364]
[1737968930720,0.26165917,99427.0,99426.0,0.56675864]
[1737968930924,0.26165917,99427.0,99426.0,0.56075864]
[1737968931346,0.26165917,99427.0,99426.0,0.56975864]
[1737968931551,0.26165917,99427.0,99426.0,0.54023164]
[1737968932170,0.26165917,99427.0,99426.0,0.53723164]
[1737968932619,0.26165917,99427.0,99426.0,0.26361229]
[1737968933046,0.26165917,99427.0,99426.0,0.27261229]
[1737968933249,0.26165917,99427.0,99426.0,0.26361229]
[1737968933450,0.26165917,99427.0,99426.0,0.26061229]
[1737968933658,0.26165917,99427.0,99426.0,0.26961229]
[1737968933895,0.26165917,99427.0,99426.0,0.26361229]
[1737968934101,0.2563316,99427.0,99426.0,0.36398729]
[1737968934304,0.26165917,99427.0,99426.0,0.27161229]
[1737968934718,0.26165917,99427.0,99426.0,0.56251629]
[1737968934849,0.24154417,99427.0,99426.0,0.56251629]
[1737968935249,0.2362166,99427.0,99426.0,0.56251629]
[1737968935709,0.2362166,99427.0,99426.0,0.53951629]
[1737968935887,0.2362166,99427.0,99426.0,0.53651629]
[1737968936091,0.2362166,99427.0,99426.0,0.52851629]
[1737968936289,0.2362166,99427.0,99426.0,0.53181344]
[1737968936544,0.2362166,99427.0,99426.0,0.54081344]
[1737968936732,0.2362166,99427.0,99426.0,0.53781344]
[1737968937154,0.2362166,99427.0,99426.0,0.54081344]
[1737968937542,0.2362166,99427.0,99426.0,0.53781344]
[1737968937781,0.2362166,99427.0,99426.0,0.52881344]
[1737968937954,0.2362166,99427.0,99426.0,0.40863598]
[1737968938167,0.2362166,99427.0,99426.0,0.29073198]
[1737968938350,0.24163922,99427.0,99426.0,0.29073198]
[1737968938914,0.24163922,99427.0,99426.0,0.18098469]
[1737968939086,0.24163922,99427.0,99426.0,0.19338469]
[1737968939320,0.24163922,99427.0,99426.0,0.18138469]
[1737968939754,0.24163922,99427.0,99426.0,0.19338469]
[1737968940088,0.24163922,99427.0,99426.0,0.18438469]
[1737968940285,0.24163922,99427.0,99426.0,0.18838469]
[1737968940544,0.24163922,99427.0,99426.0,0.18138469]
[1737968940733,0.24163922,99427.0,99426.0,0.18338469]
[1737968940864,0.24163922,99427.0,99426.0,0.19038469]
[1737968941079,0.24163922,99427.0,99426.0,0.16016215]
[1737968943152,0.24163922,99427.0,99426.0,0.25750944]
[1737968943742,0.24163922,99427.0,99426.0,0.28866025]
[1737968944362,0.24163922,99427.0,99426.0,0.54493739]
[1737968945513,0.24163922,99427.0,99426.0,0.13779525]
[1737968945514,0.39250322,99427.0,99426.0,0.13779525]
[1737968945719,0.39250322,99427.0,99426.0,0.00929715]
[1737968945720,0.50840923,99427.0,99426.0,0.00929715]
[1737968945891,0.150881,99416.0,99391.0,0.05354649]
[1737968946098,0.201176,99415.0,99391.0,0.05354649]
[1737968946299,0.1509,99404.0,99391.0,0.14269603]
[1737968946477,0.236075,99404.0,99391.0,0.14368423]
[1737968946677,0.150906,99400.0,99391.0,0.14368423]
[1737968946908,0.236075,99400.0,99396.0,0.15091]
[1737968947107,0.236075,99400.0,99391.0,0.08914954]
[1737968947313,0.00519444,99399.0,99393.0,0.150915]
[1737968947510,0.24126944,99399.0,99393.0,0.29856729]
[1737968947686,0.236075,99399.0,99391.0,0.09414954]
[1737968947893,0.150917,99392.0,99391.0,0.09414954]
[1737968948120,0.516392,99392.0,99391.0,0.09414954]
[1737968948294,0.52148704,99392.0,99391.0,0.09414954]
[1737968948860,0.52148704,99392.0,99391.0,0.09514954]
[1737968949114,0.62883433,99392.0,99391.0,0.09514954]
[1737968949306,0.62883433,99392.0,99391.0,0.09414954]
[1737968949695,0.62983433,99392.0,99391.0,0.09414954]
[1737968949899,0.62983433,99392.0,99391.0,0.09814954]
[1737968950121,0.77983433,99392.0,99391.0,0.08914954]
[1737968950327,0.77983433,99392.0,99344.0,0.20132]
[1737968950328,0.150935,99380.0,99354.0,0.150975]
[1737968950538,0.48435729,99380.0,99350.0,0.201308]
[1737968950745,0.150946,99373.0,99355.0,0.21168313]
[1737968950925,0.387021,99373.0,99372.0,0.00044539]
[1737968951281,0.39209275,99373.0,99372.0,0.00044539]
[1737968952054,0.48944004,99373.0,99372.0,0.00044539]
[1737968952288,0.57014004,99373.0,99372.0,0.00044539]
[1737968952505,0.82184004,99373.0,99372.0,0.00044539]
[1737968952748,0.82284004,99373.0,99372.0,0.00044539]
[1737968952994,0.78988284,99373.0,99372.0,0.00044539]
[1737968953232,0.77988284,99373.0,99372.0,0.00044539]
[1737968953439,0.79906917,99373.0,99372.0,0.00044539]
[1737968953847,0.80106917,99373.0,99372.0,0.00044539]
[1737968954256,0.83706917,99373.0,99372.0,0.00044539]
[1737968954478,0.9061735,99373.0,99372.0,0.00044539]
[1737968954711,0.150992,99343.0,99342.0,0.0009971]
[1737968954945,0.236075,99343.0,99328.0,0.0124]
[1737968955148,0.24088652,99343.0,99342.0,0.150993]
[1737968955358,0.24088652,99343.0,99339.0,0.150997]
[1737968955793,0.24088652,99343.0,99332.0,0.09734729]
[1737968955997,0.24088652,99343.0,99341.0,0.150993]
[1737968956204,0.24088652,99343.0,99331.0,0.00044545]
[1737968956205,0.236075,99343.0,99331.0,0.01474105]
[1737968956414,0.150993,99342.0,99332.0,0.151007]
[1737968956624,0.21569151,99343.0,99333.0,0.201342]
[1737968956839,0.21569151,99343.0,99339.0,0.002]
[1737968957047,0.21569151,99343.0,99334.0,0.20134]
[1737968957254,0.21569151,99343.0,99331.0,0.00044545]
[1737968957255,0.151001,99338.0,99331.0,0.00044545]
[1737968957461,0.151008,99332.0,99331.0,0.00044545]
[1737968957666,0.36669951,99332.0,99331.0,0.00044545]
[1737968957870,0.21569151,99332.0,99331.0,0.00044545]
[1737968958075,0.36669951,99332.0,99331.0,0.00044545]
[1737968958369,0.36669951,99332.0,99331.0,0.00544545]
[1737968958721,0.21569151,99332.0,99331.0,0.00044545]
[1737968959144,0.21569151,99332.0,99331.0,0.00244545]
[1737968959678,0.36669951,99332.0,99331.0,0.00244545]
[1737968959983,0.36669951,99332.0,99331.0,0.00044545]
[1737968960734,0.21569151,99332.0,99331.0,0.00044545]
[1737968960930,0.21569151,99332.0,99331.0,0.15145545]
[1737968961351,0.21669151,99332.0,99331.0,0.15145545]
[1737968961673,0.21769151,99332.0,99331.0,0.15145545]
[1737968962119,0.21669151,99332.0,99331.0,0.15145545]
[1737968962279,0.21669151,99332.0,99331.0,0.15645545]
[1737968962859,0.21569151,99332.0,99331.0,0.15645545]
[1737968963059,0.21569151,99332.0,99331.0,0.15745545]
[1737968963276,0.21569151,99332.0,99331.0,0.40989557]
[1737968963478,0.21569151,99332.0,99331.0,0.43189557]
[1737968963685,0.21569151,99332.0,99331.0,0.43689557]
[1737968963890,0.21569151,99332.0,99331.0,0.44898692]
[1737968964034,0.14318133,99332.0,99331.0,1.11568992]
[1737968964258,0.10291333,99332.0,99331.0,0.57098692]
[1737968964471,0.04251133,99332.0,99331.0,0.58338692]
[1737968964680,0.04251133,99332.0,99331.0,0.58438692]
[1737968964926,0.201219,99394.0,99384.0,0.150929]
[1737968965101,0.50307,99394.0,99369.0,0.20127]
[1737968965330,0.50307,99394.0,99370.0,0.24734729]
[1737968965530,0.50307,99394.0,99393.0,0.150916]
[1737968965656,0.50307,99394.0,99370.0,0.09734729]
[1737968965862,0.50307,99394.0,99383.0,0.20124]
[1737968966056,0.50307,99394.0,99369.0,0.0009845]
[1737968966261,0.22282173,99390.0,99371.0,0.150948]
[1737968966501,0.50307,99390.0,99377.0,0.150939]
[1737968966698,0.150927,99386.0,99370.0,0.204267]
[1737968966917,0.150928,99385.0,99372.0,0.201263]
[1737968967119,0.653998,99385.0,99376.0,0.150941]
[1737968967356,0.653998,99385.0,99377.0,0.15094]
[1737968967732,0.50307,99385.0,99380.0,0.150935]
[1737968967980,0.50307,99385.0,99370.0,0.003]
[1737968968182,0.50307,99385.0,99367.0,0.0009844]
[1737968968323,0.150943,99375.0,99371.0,0.002]
[1737968968525,0.50307,99375.0,99371.0,0.002]
[1737968968730,0.50307,99375.0,99369.0,0.150952]
[1737968968928,0.50307,99375.0,99355.0,0.0009871]
[1737968969126,0.654013,99375.0,99368.0,0.150953]
[1737968969337,0.50307,99375.0,99370.0,0.15095]
[1737968969959,0.654014,99375.0,99367.0,0.150954]
[1737968970209,0.50307,99375.0,99362.0,0.001]
[1737968970807,0.50307,99375.0,99355.0,0.01131725]
[1737968971020,0.150954,99368.0,99361.0,0.150964]
[1737968971226,0.654024,99368.0,99367.0,0.001]
[1737968971863,0.50307,99368.0,99367.0,0.001]
[1737968972534,0.50307,99368.0,99355.0,0.01331725]
[1737968972535,0.50307,99368.0,99362.0,0.25627714]
[1737968972740,0.50507,99368.0,99367.0,0.150955]
[1737968973995,0.50507,99368.0,99358.0,0.213692]
[1737968974263,0.656024,99368.0,99358.0,0.0124]
[1737968974416,0.50307,99368.0,99365.0,0.150958]
[1737968975109,0.50307,99368.0,99367.0,0.001]
[1737968976388,0.50307,99368.0,99362.0,0.150962]
[1737968976791,0.50307,99368.0,99358.0,0.0124]
[1737968977002,0.150955,99367.0,99361.0,0.150963]
[1737968977210,0.50307,99367.0,99359.0,0.20129]
[1737968977415,0.50307,99367.0,99366.0,0.150957]
[1737968977823,0.50307,99367.0,99361.0,0.201286]
[1737968978040,0.654026,99367.0,99361.0,0.150963]
[1737968978216,0.50307,99367.0,99358.0,0.0124]
[1737968978427,0.50307,99367.0,99363.0,0.15096]
[1737968978828,0.50307,99367.0,99362.0,0.150962]
[1737968979033,0.50307,99367.0,99358.0,0.0124]
[1737968979234,0.50307,99367.0,99361.0,0.002]
[1737968979440,0.150972,99356.0,99355.0,0.0009871]
[1737968979606,0.654042,99356.0,99355.0,0.0009871]
[1737968979806,0.50307,99356.0,99350.0,0.5]
[1737968980332,0.50307,99356.0,99355.0,0.150973]
[1737968981505,0.50307,99356.0,99352.0,0.150978]
[1737968981683,0.50307,99356.0,99350.0,0.65098]
[1737968981924,0.50307,99356.0,99350.0,0.65298]
[1737968982113,0.50307,99356.0,99350.0,0.502]
[1737968982299,0.50307,99356.0,99355.0,0.150973]
[1737968982505,0.50307,99356.0,99355.0,0.152973]
[1737968982715,0.50307,99356.0,99351.0,0.150979]
[1737968982925,0.50307,99356.0,99350.0,0.5]
[1737968983130,0.50307,99356.0,99355.0,0.151973]
[1737968983553,0.50307,99356.0,99355.0,0.150973]
[1737968986687,0.50307,99356.0,99355.0,0.16110924]
[1737968987316,0.50307,99356.0,99355.0,0.01013624]
[1737968987729,0.50307,99356.0,99354.0,0.150974]
[1737968987906,0.50307,99356.0,99355.0,0.150973]
[1737968988108,0.50307,99356.0,99355.0,0.152973]
[1737968988492,0.50307,99356.0,99355.0,0.150973]
[1737968989667,0.50307,99356.0,99355.0,0.25627714]
[1737968990479,0.50307,99356.0,99351.0,0.352285]
[1737968990676,0.50307,99356.0,99354.0,0.150975]
[1737968991046,0.50307,99356.0,99355.0,0.150973]
[1737968993496,0.50307,99356.0,99355.0,0.24832029]
[1737968993681,0.50307,99356.0,99355.0,0.39832029]
[1737968993884,0.50307,99356.0,99355.0,0.42955926]
[1737968994113,0.50307,99356.0,99355.0,0.45255926]
[1737968994484,0.50307,99356.0,99355.0,0.61194226]
[1737968996052,0.5032117,99356.0,99355.0,0.74630126]
[1737968996257,0.5032117,99356.0,99355.0,0.45255926]
[1737968996641,0.5032117,99356.0,99355.0,0.76898026]
[1737968998375,0.5032117,99356.0,99355.0,0.76998026]
[1737968998911,0.4876377,99356.0,99355.0,0.76998026]
[1737968999975,0.4876377,99356.0,99355.0,0.77098026]
[1737969000385,0.4876377,99356.0,99355.0,0.45355926]
[1737969000544,0.4876377,99356.0,99355.0,0.44191926]
[1737969001065,0.4876377,99356.0,99355.0,0.41668029]
[1737969001255,0.4876377,99356.0,99355.0,0.41268029]
[1737969001481,0.4876377,99356.0,99355.0,0.165333]
[1737969002320,0.4876377,99356.0,99355.0,0.01636]
[1737969002517,0.6386097,99356.0,99355.0,0.01836]
[1737969002714,0.4876377,99356.0,99355.0,0.01836]
[1737969002940,0.4876377,99356.0,99355.0,0.169333]
[1737969003141,0.4876377,99356.0,99355.0,0.26468029]
[1737969003490,0.4876377,99356.0,99355.0,0.26068029]
[1737969003690,0.4876377,99356.0,99355.0,0.163333]
[1737969003889,0.4876377,99356.0,99355.0,0.164333]
[1737969004152,0.4876377,99356.0,99355.0,0.26068029]
[1737969004350,0.4876377,99356.0,99355.0,0.26268029]
[1737969004596,0.4876377,99356.0,99355.0,0.26668029]
[1737969005013,0.4876377,99356.0,99355.0,0.26268029]
[1737969005163,0.4876377,99356.0,99355.0,0.26368029]
[1737969005702,0.4876377,99356.0,99355.0,0.163333]
[1737969006089,0.4876377,99356.0,99355.0,0.01236]
[1737969006966,0.4876377,99356.0,99355.0,0.01336]
[1737969007166,0.4876377,99356.0,99355.0,0.167333]
[1737969007377,0.6386097,99356.0,99355.0,0.003]
[1737969007588,0.6386097,99356.0,99350.0,0.5]
[1737969007589,0.150979,99351.0,99350.0,0.5]
[1737969007801,0.24832629,99351.0,99350.0,0.5]
[1737969008011,0.24832629,99351.0,99331.0,0.00029736]
[1737969008012,0.151001,99337.0,99331.0,0.00029736]
[1737969008238,0.88584429,99337.0,99331.0,0.00029736]
[1737969008449,0.88584429,99337.0,99336.0,0.00014809]
[1737969008450,0.487496,99337.0,99336.0,0.00014809]
[1737969008670,0.487496,99337.0,99336.0,0.24849738]
[1737969008886,0.487496,99337.0,99336.0,1.33512162]
[1737969009098,0.487496,99337.0,99336.0,0.92955738]
[1737969009306,0.487496,99337.0,99336.0,0.54347938]
[1737969009694,0.487496,99337.0,99336.0,0.54447938]
[1737969009962,0.487496,99337.0,99336.0,0.52866438]
[1737969010177,0.487496,99337.0,99336.0,0.74869938]
[1737969010356,0.487496,99337.0,99336.0,0.65192238]
[1737969010590,0.487496,99337.0,99336.0,0.63750538]
[1737969010799,0.487496,99337.0,99336.0,0.15515009]
[1737969011005,0.487496,99337.0,99336.0,0.15715009]
[1737969011211,0.487496,99337.0,99336.0,0.15515009]
[1737969011640,0.487496,99337.0,99336.0,0.16215009]
[1737969011844,0.487496,99337.0,99336.0,0.15115009]
[1737969012263,0.487496,99337.0,99336.0,0.00714809]
[1737969012471,0.487496,99337.0,99336.0,0.25549738]
[1737969012673,0.487496,99337.0,99336.0,0.25249738]
[1737969012874,0.487496,99337.0,99336.0,0.15615009]
[1737969013192,0.487496,99337.0,99336.0,0.00514809]
[1737969013623,0.633497,99337.0,99336.0,0.00514809]
[1737969014448,0.482496,99337.0,99336.0,0.15215009]
[1737969014782,0.483496,99337.0,99336.0,0.15115009]
[1737969015170,0.482496,99337.0,99336.0,0.15115009]
[1737969015557,0.484496,99337.0,99336.0,0.15115009]
[1737969015769,0.484496,99337.0,99336.0,0.00014809]
[1737969015770,0.635497,99337.0,99336.0,0.00014809]
[1737969015984,0.81044429,99337.0,99336.0,0.00014809]
[1737969016837,0.80844429,99337.0,99336.0,0.00014809]
[1737969017035,0.81851936,99337.0,99336.0,0.00014809]
[1737969017262,0.84006291,99337.0,99336.0,0.00014809]
[1737969017468,0.83906291,99337.0,99336.0,0.00014809]
[1737969017910,0.84106291,99337.0,99336.0,0.00014809]
[1737969018090,0.83906291,99337.0,99336.0,0.00014809]
[1737969018287,0.84106291,99337.0,99336.0,0.00014809]
[1737969018523,0.84306291,99337.0,99336.0,0.00014809]
[1737969018720,0.83906291,99337.0,99336.0,0.00014809]
[1737969018902,0.73164055,99337.0,99336.0,0.00014809]
[1737969019103,0.50603955,99337.0,99336.0,0.00014809]
[1737969019306,0.75438784,99337.0,99336.0,0.00014809]
[1737969019515,0.75138784,99337.0,99336.0,0.00014809]
[1737969019934,0.73284429,99337.0,99336.0,0.00014809]
[1737969020141,0.73284429,99337.0,99336.0,0.00044545]
[1737969020142,0.73484429,99337.0,99336.0,0.00044545]
[1737969020536,0.73284429,99337.0,99336.0,0.00044545]
[1737969020744,0.73384429,99337.0,99336.0,0.00044545]
[1737969020936,0.485496,99337.0,99336.0,0.00044545]
[1737969021132,0.482496,99337.0,99336.0,0.15144745]
[1737969021597,0.484496,99337.0,99336.0,0.15144745]
[1737969021791,0.482496,99337.0,99336.0,0.15144745]
[1737969022169,0.483496,99337.0,99336.0,0.15144745]
[1737969022492,0.484496,99337.0,99336.0,0.15144745]
[1737969022684,0.484496,99337.0,99336.0,0.16168092]
[1737969022935,0.483496,99337.0,99336.0,0.16168092]
[1737969023577,0.482496,99337.0,99336.0,0.16168092]
[1737969023767,0.483496,99337.0,99336.0,0.16168092]
[1737969023964,0.482496,99337.0,99336.0,0.16168092]
[1737969024369,0.483496,99337.0,99336.0,0.16168092]
[1737969024654,0.482496,99337.0,99336.0,0.16168092]
[1737969024987,0.48296256,99337.0,99336.0,0.16168092]
[1737969025439,0.48296256,99337.0,99336.0,0.15144745]
[1737969026637,0.48296256,99337.0,99336.0,0.01057653]
[1737969026844,0.63396356,99337.0,99336.0,0.00044545]
[1737969028310,0.63596356,99337.0,99336.0,0.00044545]
[1737969029137,0.48496256,99337.0,99336.0,0.00044545]
[1737969029506,0.63596356,99337.0,99336.0,0.00044545]
[1737969029915,0.48496256,99337.0,99336.0,0.00044545]
[1737969030123,0.48496256,99337.0,99336.0,0.15144745]
[1737969030712,0.48496256,99337.0,99336.0,0.1384416]
[1737969030934,0.48196256,99337.0,99336.0,0.1384416]
[1737969031159,0.48296256,99337.0,99336.0,0.1384416]